Cogmind - Beta 16 @@@ ROGUE MODE // 2025.10.30 @ 08:16:01 Player: shapeshifter Result: Destroyed by YI-UF0 with YI-UF0's Doublenader Performance ------------- Evolutions (0) 0 Regions Visited (2) 400 Robots Destroyed (26) 130 Value Destroyed (572) 572 Prototype IDs (0) 0 Alien Tech Used (0) 0 Bonus (-63) -63 TOTAL SCORE: 1039 Bonus ------- Friendly Fire -63 Cogmind --------- Core Integrity 0/250 Matter 296/300 Energy 94/100 System Corruption 0% Temperature Cool (0) Movement Core (150) Ox2 Location -10/Mines Parts ------- > --- POWER (1) -------- (None) > --- PROPULSION (2) --- (None) > --- UTILITY (2) ------ Small Storage Unit Improved Terrain Scanner > --- WEAPON (2) ------- Light Assault Rifle > --- INVENTORY (8) ---- Light Nuclear Core High-capacity Storage Unit Huge Storage Unit Tractor Beam Grenade Launcher Grenade Launcher Peak State ------------ > --- POWER ------------ Light Ion Engine > --- PROPULSION ------- Compact Wheel Compact Wheel > --- UTILITY ---------- Small Storage Unit Improved Terrain Scanner > --- WEAPON ----------- Medium Laser Light Assault Rifle > --- INVENTORY -------- Light Nuclear Core High-capacity Storage Unit Huge Storage Unit Tractor Beam Light Assault Rifle Grenade Launcher [Rating: 9] Favorites ----------- Power Ion Engine Engine Ion Engine Propulsion Light Treads Treads Light Treads Wheel Compact Wheel Utility Small Storage Unit Device Tractor Beam Storage Small Storage Unit Weapon Light Assault Rifle Energy Gun Medium Laser Ballistic Gun Light Assault Rifle Build | -11 -10 -10 ------- Run | Yrd Mat Min Slots Evolved . | . . . Power . | . . . Propulsion . | . . . Utility . | . . . Weapon . | . . . Parts Attached 14 | 8 2 4 Power 2 | 1 1 . Engine 2 | 1 1 . Core . | . . . Reactor . | . . . Propulsion 4 | 2 . 2 Treads 2 | 2 . . Leg . | . . . Wheel 2 | . . 2 Hover . | . . . Flight . | . . . Utility 4 | 3 . 1 Device 3 | 2 . 1 Storage 1 | 1 . . Processor . | . . . Hackware . | . . . Protection . | . . . Artifact . | . . . Weapon 4 | 2 1 1 Energy Gun 2 | 1 1 . Energy Cannon . | . . . Ballistic Gun 2 | 1 . 1 Ballistic Cannon . | . . . Launcher . | . . . Special Weapon . | . . . Impact Weapon . | . . . Slashing Weapon . | . . . Piercing Weapon . | . . . Special Melee Weapon . | . . . Unidentified Prototypes . | . . . Parts Lost 9 | . 2 7 Power 1 | . . 1 Propulsion 4 | . . 4 Utility 1 | . 1 . Weapon 3 | . 1 2 Highest Loss Streak 5 | . 1 5 To Critical Strikes . | . . . Average Backups 6 | 3 6 6 Power . | . 1 . Propulsion 1 | 1 2 . Utility 2 | . 2 3 Weapon 1 | . 1 2 Tool/Special . | . . . Unused Backups 5 | . . 5 Power 1 | . . 1 Propulsion . | . . . Utility 2 | . . 2 Weapon 2 | . . 2 Tool/Special . | . . . Average Slot Usage (%) 99 | . 99 98 Engine 13 | . 14 13 Treads 16 | . 28 1 Wheel 11 | . . 25 Device 14 | . 14 14 Storage 14 | . 14 14 Energy Gun 8 | . 13 2 Ballistic Gun 19 | . 14 25 Peak Build Rating 9 | 7 8 9 Average Rating 7 | 6 7 8 On Entrance 4 | . 7 7 Avg Prop Armor Cover (%) . | . . . Naked Turns . | . . . Heaviest Build 14 | 14 14 12 Greatest Support 40 | 40 40 40 Greatest Overweight (x) . | . . . Average Overweight (x) . | . . . Largest Inventory Capacity 8 | 8 8 8 Average Capacity 7 | 7 8 8 Most Carried 8 | 6 8 7 Average Carried 6 | 4 6 6 Final Capacity 8 | 8 8 8 Final Carried 7 | 6 7 6 Class Distribution -------------------- 100% | Mutant Dominant Class ---------------- Mutant | -10/Materials Mutant | -10/Mines Resources | -11 -10 -10 ----------- Run | Yrd Mat Min Matter Collected 438 | 303 57 78 Remotely 153 | 88 21 44 Salvage Created 834 | 229 422 183 Parts 56 | 21 30 5 Haulers Intercepted . | . . . Recyclers Shooed 1 | 1 . . Parts Field Recycled . | . . . Retrieved Matter . | . . . Parts Self-Destructed . | . . . Prevented . | . . . Parts Restored . | . . . Kills | -11 -10 -10 ------- Run | Yrd Mat Min Combat Hostiles Destroyed 16 | . 12 4 Guns 16 | . 12 4 Classes Destroyed 6 | 3 3 . Worker 1 | 1 . . Builder 1 | . 1 . Tunneler 7 | 7 . . Recycler 1 | 1 . . Swarmer 3 | . 3 . Grunt 13 | . 9 4 Best Kill Streak 4 | 2 4 2 Combat Bots Only 3 | . 3 2 Max Kills in Single Turn 1 | 1 1 1 Gunslinging . | . . . Exploded . | . . . Melee . | . . . Uniques/NPCs Destroyed . | . . . Combat | -11 -10 -10 -------- Run | Yrd Mat Min Hostile Shots Fired 98 | . 55 43 Missed 27 | . 18 9 Hits 71 | . 37 34 Projectile 71 | . 37 34 AOE 10 | . . 10 Critical Strikes 1 | . 1 . Damage Taken 1133 | . 402 731 Core 263 | . 59 204 Absorbed by Shields . | . . . Core Remaining (%) 100 | 100 . . Volleys Fired 94 | 23 45 26 Largest 2 | 2 2 2 Hottest 70 | 70 70 70 Shots Fired 182 | 46 87 49 Gun 182 | 46 87 49 Cannon . | . . . Launcher . | . . . Special . | . . . Kinetic 104 | 23 45 36 Thermal 78 | 23 42 13 Explosive . | . . . Electromagnetic . | . . . Robot Hit Streak 14 | 8 14 11 Robot Miss Streak 3 | 3 3 2 Penetration Max . | . . . Secondary Targets 1 | . . 1 Max Gunslinging Chain 1 | . . 1 Shots Hit Robots 122 | 24 59 39 Core Hits 52 | 12 25 15 Critical Kills . | . . . Critical Parts Destroyed 1 | . . 1 Critical Strikes 7 | . 6 1 Burn 6 | . 6 . Destroy 1 | . . 1 Melee Attacks . | . . . Impact . | . . . Slashing . | . . . Piercing . | . . . Sneak Attacks . | . . . Combat Hostiles . | . . . Follow-up Attacks . | . . . Damage Inflicted 1232 | 275 595 362 Guns 1232 | 275 595 362 Cannons . | . . . Explosions . | . . . Melee . | . . . Ramming . | . . . Kinetic 578 | 86 256 236 Thermal 654 | 189 339 126 Explosive . | . . . Electromagnetic . | . . . Impact . | . . . Slashing . | . . . Piercing . | . . . Highest Corruption . | . . . Average Corruption . | . . . Corruption Purged . | . . . Corruption Blocked . | . . . Overload Shots . | . . . Overflow Damage . | . . . Projectiles . | . . . Explosions . | . . . Melee . | . . . Knockbacks . | . . . Impact . | . . . Kinetic . | . . . Secondary . | . . . Self-Inflicted Damage . | . . . Shots . | . . . Rammed . | . . . Targets Rammed . | . . . Kicked . | . . . Crushed . | . . . Highest Temperature 336 | 90 211 336 Average Temperature 80 | 30 76 162 Received Heat Transfer 423 | . 207 216 Effects 1 | . . 1 Energy Bleed 1 | . . 1 Siege Activations . | . . . Martial Activations . | . . . Shielding Activations . | . . . Robots Disrupted . | . . . Combat Hostiles . | . . . Robots Corrupted . | . . . Combat Hostiles . | . . . Parts Fried . | . . . Impact Corruptions . | . . . Robots Melted . | . . . Combat Hostiles . | . . . Parts Melted 4 | . 3 1 Heat Transferred 2368 | 555 1443 370 Parts Sabotaged . | . . . Parts Stolen . | . . . Parts Stripped . | . . . Power Chain Reactions . | . . . Alert | -11 -10 -10 ------- Run | Yrd Mat Min Maximum Alert Level . | . . . Low Security (%) 100 | 100 100 100 Level 1 . | . . . Level 2 . | . . . Level 3 . | . . . Level 4 . | . . . Level 5 . | . . . High Security . | . . . Max Security . | . . . Peak Influence 150 | 10 150 59 Initial 39 | . . 39 Average 42 | 1 87 13 Influence Increases 540 | 45 395 100 Destroy 0b10 Robot/C 320 | . 240 80 Destroy 0b10 Robot/NC 50 | 45 5 . Destroy Leader 80 | . 60 20 Successful Hack 15 | . 15 . Select Force Hacks 60 | . 60 . Lose Combat Pursuer 15 | . 15 . Influence Decreases 540 | 45 293 202 Entered New Map 63 | . . 63 Time Decay 437 | 45 273 119 Lost Part 40 | . 20 20 Squads Dispatched 6 | . 6 . Investigation 3 | . 3 . Extermination . | . . . Reinforcement 3 | . 3 . Assault . | . . . Garrison . | . . . Intercept . | . . . Searches Triggered . | . . . Construction Impeded . | . . . Haulers Reinforced . | . . . Active Scanning Responses . | . . . Cargo Convoy Interrupts . | . . . Stealth | -11 -10 -10 --------- Run | Yrd Mat Min Distress Signals 2 | . 1 1 Communications Jammed . | . . . Distress Signals . | . . . Times Spotted 22 | . 17 5 Peak Tracking Total 3 | . 3 2 Tactical Retreats 1 | . 1 . Traps | -11 -10 -10 ------- Run | Yrd Mat Min Traps Triggered 1 | . 1 . Indirectly . | . . . Trap Hack Attempts . | . . . Triggered . | . . . Disarmed . | . . . Reprogrammed . | . . . Reused . | . . . Traps Extracted . | . . . Installed . | . . . Triggered . | . . . Machines | -11 -10 -10 ---------- Run | Yrd Mat Min Machines Disabled . | . . . Max in Single Turn . | . . . Machines Repaired . | . . . Machines Dismantled . | . . . Machines Sabotaged . | . . . Overloaded Fab Kills . | . . . Hacking | -11 -10 -10 --------- Run | Yrd Mat Min Machines Accessed 4 | . 4 . Terminals 2 | . 2 . Fabricators . | . . . Repair Stations . | . . . Recycling Units 2 | . 2 . Scanalyzers . | . . . Garrison Access . | . . . Total Hacks 13 | . 13 . Successful 8 | . 8 . Failed 5 | . 5 . Catastrophic 2 | . 2 . Database Lockouts . | . . . Manual 10 | . 10 . Terminals 8 | . 8 . Fabricators . | . . . Repair Stations . | . . . Recycling Units 5 | . 5 . Scanalyzers . | . . . Garrison Access . | . . . Terminal Hacks 2 | . 2 . Zone Layout 2 | . 2 . Fabricator Hacks . | . . . Repair Station Hacks . | . . . Recycling Unit Hacks 2 | . 2 . Retrieve Components 2 | . 2 . Scanalyzer . | . . . Garrison Access Hacks . | . . . Unauthorized Hacks 4 | . 4 . Terminals 2 | . 2 . Skim 2 | . 2 . Fabricators . | . . . Repair Stations . | . . . Recycling Units 2 | . 2 . Tunnel 2 | . 2 . Scanalyzers . | . . . Garrison Access . | . . . Data Cores Recovered . | . . . Used . | . . . Hacking Detections 2 | . 2 . Full Trace Events . | . . . Feedback Events . | . . . Feedback Blocked . | . . . Robot Schematics Acquired . | . . . Robots Built . | . . . Authchips . | . . . Time . | . . . Total Robot Build Rating . | . . . Part Schematics Acquired . | . . . Parts Built . | . . . Authchips . | . . . Time . | . . . Total Part Build Rating . | . . . Part Studies Acquired . | . . . Parts Repaired . | . . . Time . | . . . Parts Recycled . | . . . Recycled Matter . | . . . Retrieved Matter . | . . . Retrieved Components 12 | . 12 . Parts Scanalyzed . | . . . Part Schematics Acquired . | . . . Parts Damaged . | . . . Bothacking | -11 -10 -10 ------------ Run | Yrd Mat Min Used RIF Installer . | . . . Robots Hacked . | . . . Non-combat . | . . . Combat . | . . . Robot Hacks Applied . | . . . Relay Couplers Released . | . . . Fabnet Peak Effective % . | . . . Robots Rewired . | . . . Allies Hacked . | . . . Hacks Repelled . | . . . Allies | -11 -10 -10 -------- Run | Yrd Mat Min Total Allies . | . . . Largest Group . | . . . Highest-Rated Group . | . . . Highest-Rated Ally . | . . . Total Orders . | . . . Ally Attacks . | . . . Total Damage . | . . . Kills . | . . . Allies Corrupted . | . . . Allies Melted . | . . . Intel | -11 -10 -10 ------- Run | Yrd Mat Min Active Infowar (turns) 904 | 39 383 482 Terrain 482 | . . 482 Seismic 422 | 39 383 . Robot Analysis Total . | . . . Derelict Logs Recovered 3 | . . 3 Drone Launches . | . . . Drone Recoveries . | . . . Exploration | -11 -10 -10 ------------- Run | Yrd Mat Min Turns Passed 1493 | 317 644 532 Spaces Moved 893 | 155 307 431 Core 14 | 14 . . Treads 449 | 141 307 1 Legs . | . . . Wheels 430 | . . 430 Hover . | . . . Flight . | . . . Fastest Speed 50 | 50 160 100 Average Speed 129 | 150 160 100 Slowest Speed 160 | 160 160 160 Overloaded Moves . | . . . Propulsion Burnouts . | . . . Robots Hopped . | . . . Potential Cave-ins . | . . . Cave-ins Triggered . | . . . Exploration Rate (%) 50 | 5 66 79 Regions Visited 2 Branch Regions 1 Pre-discovered Areas 2 | . 2 . Known Exits Taken . | . . . Unknown Exits Taken 2 | 1 1 . Scrap Searched . | . . . Spaces Dug . | . . . Terrain Destroyed . | . . . Melee . | . . . Projectile . | . . . AOE . | . . . Terrain Rammed . | . . . Walls Destroyed . | . . . Machines Disabled . | . . . Actions | -11 -10 -10 --------- Run | Yrd Mat Min Total 1069 | 198 382 489 Wait 47 | . 23 24 Move 891 | 154 306 431 Hop . | . . . Pick Up 19 | 13 4 2 Fast Attach . | . . . Attach 12 | 7 2 3 Detach . | . . . Swap 5 | 1 1 3 Drop 1 | . 1 . Fire 94 | 23 45 26 Melee . | . . . Ram . | . . . Kick . | . . . Crush . | . . . Escape Stasis . | . . . Rewire . | . . . Trap . | . . . Miscellaneous . | . . . Route ------- -11/Scrapyard -10/Materials (discovered 2 exits: *Mat / [*Min]) -10/Mines (discovered 2 exits: *Mat x2) History --------- Turn | Location | Event 66 | -11/Scrapyard | Discovered new exit (range 12) 318 | -11/Scrapyard | Entered Materials 319 | -10/Materials | Build established: Mutant 640 | -10/Materials | Discovered new exit (range 11) 944 | -10/Materials | Discovered new exit (range 11) 962 | -10/Materials | Entered Mines 1022 | -10/Mines | Identified exit to Materials 1035 | -10/Mines | Learned Materials security intel 1045 | -10/Mines | Learned Materials stockpile data 1074 | -10/Mines | Assembled infested the area 1079 | -10/Mines | Assisted by a Guerilla fighting off Assembled 1125 | -10/Mines | YI-UF0 nonchalantly dropped a Grenade Launcher on the ground 1251 | -10/Mines | Discovered exit to Materials (range 16) 1377 | -10/Mines | Deemed a non-threat by the Exiles lab entrance 1487 | -10/Mines | Core integrity fell below 50% 1494 | -10/Mines | Destroyed by YI-UF0 with YI-UF0's Doublenader Last Messages --------------- 01245_ Acquired 34 matter. 01251_ EXIT=FOUND: MATERIALS 01257_ G-34 Mercenary destroyed. 01268_ T-07 Excavator is excavating. 01282_ U-05 Engineer lays Concrete. 01285_ T-07 Excavator is excavating. 01297_ R-06 Scavenger collects Sml. Laser. 01297_ K-01 Serf collects debris. 01300_ R-06 Scavenger collects Aluminum Leg. 01302_ K-01 Serf collects debris. 01321_ YI-UF0 mumbles something. 01377_ "No threat detected, you may enter." 01442_ YI-UF0 mumbles something. 01486_ Lgt. Ion Engine destroyed. 01486_ Med. Laser destroyed. 01486_ YI-UF0: "BOOSH!" 01486_ K-01 Serf destroyed. 01487_ YI-UF0: "BOOM TO YOU TOO!" 01490_ Com. Wheel destroyed. 01490_ Lgt. Assault Rifle destroyed. Map ----- +----------------------------------------------------+ | #????#????????????? ##### ##?#??????? | | #?????????????????????#????### ##???????#?# | | ##????????????????????#??#?#?## ##?????????? | | ##???????????????????????????# ##??????????# | | ##??????#??????#????????#???# ###?????????#?# | | ##?####????????????????????# #???????#??? ?# | | # ### #???????#?#???#????#?# #?####????????# | | # #???????#????????#???# ### ###?? ??+ | | # #?????????#??????????# #???????+ | | # ##?????#?#???????????# #???????# | | ## ##?#???????????#?#??###### #???????# | | ?# #???????#????###??????### ##??????# | | ?# ## #????????#???????#??#?## ######## | | ?## ##### ##?????##??????##?????## | | ??## #???## #?#????????????##???### """ | | ???# ###### ############???????#?## """ ######## | | ???# ##????#?#?### """ ##????? | | ???########## ######## ###?###?##??## #####? | | ############# #?#??#?# ##??#??????# ### | | #????#?###!#?????#???### # | | ##############?###???##%######??????## | | #####??#??#???#??#?### = # ##???????## ## | | ##?????????#????## #?????### #### ## | | "" #???????????#??## ######## ##??##### | | "" #???#???????##?# u #?#?#???? | | " %%#????#???????#?# @ g ###?????? | | ##???##?######### ######## #??????# | | ##?#????# #????## #??#??## | | #??#??#?# ####### ##???## ##????## | | #???#???# ##????# #######???## ##???#?# | | #####????#??# #???### #?????## ####### | | ?############ ####?## #???## | | ??# #??# ##??# ## ####### | | ## #### """ """ #??# ##???# ### #?????## | | #??# """ """ #??# #??#?# ###?# ###???### | | ## ##??# """ """ #??## #??### #??## #???????# | | ?##??#?# #???## ##???## ##??# #???????? | | ???????# """ """ #?##??####???# ##?# #???????? | | #??????# """ """ #??#????#????# ### #??#????? | | ???????# """ """ #????????????## #?#????#? | | ???#??## #????????????### #???#???? | | ???????# """ """ #???????#??????##### #???????? | | ???????# """ """ #?????????#????????## ##???????? | | ???????# """ """ #???????????????????####????????? | | ???????# #???????????????????????????????? | | ???????# #????????????????#??????????????? | | ?#??????#########??????????????????????????#?????? | | ?????????????????????????????????????????????????? | | | | | +----------------------------------------------------+ Best States ------------- Heat Dissipation 25 Energy Generation 10 Energy Capacity 250 Matter Stores 300 Matter Capacity 300 Sight Range 16 Terrain Scan Range 16 Terrain Scan Density 10 Evasion (%) 50 Recoil Reduction 2 Item Schematics ----------------- None Robot Schematics ------------------ None Fabricated ------------ Nothing Repaired ---------- Nothing Studied --------- None Alien Tech Used ----------------- None Achievements -------------- None Challenges ------------ None Game ------ Seed PropulsionCoolingBeacon Manual? 0 Play Time 00:08:59 Cumulative 447.6 hours Start 2025.10.30 @ 08:08:26 End 2025.10.30 @ 08:16:01 Sessions 1 Manual Loads 0 Difficulty Rogue Special Mode None Game No. 570 Rogue 570 Adventurer 0 Explorer 0 Win Type - Total 14 Types 6/0/2/2/1/0/2/1/0/0 Lore% 90 Gallery% 84 Achievement% 61 Wizard Run 0 Options --------- Layout 0 ASCII 0 Keyboard 0 Movement Mouse Keybinds 0 Fullscreen 1 Font 24/Terminus Map View 76x50 Zoom Use 0% Tactical HUD 1 Map Filters NONE Filters NONE Steam 1 RUN: 4ef9c205-26f0-4e76-b7e8-03f507fbdc96